bitfinex/quotes_ETHUSD_20241009
["timestamp","ask_amount","ask_price","bid_price","bid_amount"]
[1728511253299,5.66792682,2377.3,2377.1,0.87024127]
[1728511253499,0.98743768,2377.2,2377.1,0.87024127]
[1728511254437,0.98743768,2377.2,2377.0,1.30536191]
[1728511254600,1.05916378,2377.2,2377.1,0.87547957]
[1728511257441,1.05916378,2377.2,2377.0,0.87547957]
[1728511258740,0.7833,2377.1,2377.0,0.87547957]
[1728511258949,1.84942028,2377.1,2377.0,0.87547957]
[1728511259110,1.92123048,2377.1,2377.0,0.87547957]
[1728511259507,6.12803048,2377.1,2377.0,0.87547957]
[1728511260228,13.10474269,2377.1,2377.0,0.87547957]
[1728511260420,4.20698,2377.0,2376.9,0.87547957]
[1728511260639,6.03689604,2377.0,2376.9,0.87547957]
[1728511260951,6.10870063,2377.0,2376.9,0.87547957]
[1728511264956,1.90172063,2377.0,2376.9,0.87547957]
[1728511265152,0.07180459,2377.0,2376.9,1.30536191]
[1728511265660,0.07180459,2377.0,2376.9,5.51252191]
[1728511265877,0.7912,2377.4,2376.9,5.51252191]
[1728511266063,0.06930636,2377.3,2377.0,5.08264691]
[1728511266363,0.06930636,2377.3,2377.1,5.08254691]
[1728511268573,0.06930636,2377.3,2377.2,5.08236691]
[1728511268856,0.7942,2377.6,2377.2,5.51198191]
[1728511269028,0.06930636,2377.5,2377.3,5.0824166]
[1728511269232,0.06930636,2377.5,2377.3,9.2887766]
[1728511269530,0.798,2377.8,2377.4,4.20627]
[1728511269729,0.06715045,2377.7,2377.4,4.20627]
[1728511269938,1.69602422,2377.8,2377.4,4.20627]
[1728511270144,0.06715045,2377.6,2377.4,4.20627]
[1728511270360,1.69602422,2377.8,2377.4,4.20627]
[1728511270518,0.06715045,2377.5,2377.4,4.20627]
[1728511270828,0.06715045,2377.5,2377.4,4.20619]
[1728511271032,0.798,2377.8,2377.5,4.20609]
[1728511271245,0.06715045,2377.7,2377.5,4.20609]
[1728511271443,1.69602222,2377.8,2377.5,4.20609]
[1728511271859,0.06715045,2377.7,2377.5,4.206]
[1728511272160,0.798,2377.8,2377.5,4.9771]
[1728511272335,0.06715045,2377.6,2377.5,4.9771]
[1728511272836,0.798,2377.8,2377.5,4.9771]
[1728511273035,0.06715045,2377.7,2377.4,5.0823266]
[1728511273222,4.20592,2377.6,2377.4,0.8760566]
[1728511273418,4.20592,2377.6,2377.2,5.51190191]
[1728511273419,0.7879,2377.5,2377.3,0.8760566]
[1728511273730,0.85505045,2377.5,2377.3,0.8760566]
[1728511285245,5.06116045,2377.5,2377.3,0.8760566]
[1728511285577,0.92670805,2377.4,2377.3,0.8760566]
[1728511285943,0.99421854,2377.4,2377.3,0.8760566]
[1728511286678,0.06751049,2377.4,2377.3,0.8760566]
[1728511286882,0.06751049,2377.4,2377.3,5.0825066]
[1728511287090,0.8228,2377.7,2377.3,5.0825066]
[1728511287244,0.06751612,2377.6,2377.3,5.0825066]
[1728511287679,0.06751612,2377.6,2377.3,0.8760566]
[1728511287873,1.04772683,2377.6,2377.3,0.8760566]
[1728511291396,4.20613,2377.5,2377.3,0.8760566]
[1728511291750,0.06756111,2377.4,2377.3,0.8760566]
[1728511292087,4.27383111,2377.4,2377.3,0.8760566]
[1728511292783,0.06756111,2377.4,2377.3,0.8760566]
[1728511292981,0.59295129,2377.4,2377.3,0.8760566]
[1728511293180,4.79922129,2377.4,2377.3,0.8760566]
[1728511293498,0.59295129,2377.4,2377.3,0.8760566]
[1728511296193,5.56002129,2377.4,2377.3,0.8760566]
[1728511296365,4.79922129,2377.4,2377.2,0.8760566]
[1728511296695,6.36873635,2377.3,2377.2,0.8760566]
[1728511296991,6.43626932,2377.3,2377.2,0.8760566]
[1728511297398,13.41298153,2377.3,2377.2,0.8760566]
[1728511297555,5.03162,2377.2,2377.1,0.8760566]
[1728511298186,5.09915297,2377.2,2377.1,0.8760566]
[1728511298478,7.28544012,2377.2,2377.1,0.8760566]
[1728511298684,7.28544012,2377.2,2377.0,1.30536191]
[1728511298685,10.28544012,2377.2,2377.0,0.8760566]
[1728511298885,8.18351221,2377.1,2377.0,0.8760566]
[1728511299094,8.18351221,2377.1,2376.5,0.7611]
[1728511299095,4.20713,2377.0,2376.5,0.7611]
[1728511299400,5.44634422,2376.9,2376.5,0.7611]
[1728511299761,0.06753297,2376.8,2376.5,0.7611]
[1728511301681,0.06753297,2376.8,2376.5,4.96895]
[1728511302392,0.06753297,2376.8,2376.5,0.7611]
[1728511303498,0.06753297,2376.8,2376.5,4.96895]
[1728511303700,0.61892069,2376.8,2376.5,4.96895]
[1728511306499,0.61892069,2376.8,2376.5,4.20785]
[1728511308387,0.61892069,2376.8,2376.5,4.20776]
[1728511308704,0.61892069,2376.8,2376.6,8.41517]
[1728511308906,0.06753297,2376.8,2376.6,8.41517]
[1728511309291,0.06753297,2376.8,2376.4,4.20789]
[1728511309598,0.06753297,2376.8,2376.6,4.20767]
[1728511313923,0.06753297,2376.8,2376.7,0.7713]
[1728511314137,11.94759221,2377.2,2376.7,4.97881]
[1728511314349,1.61541822,2377.1,2376.7,4.97881]
[1728511314520,1.68271492,2377.1,2376.8,4.20719]
[1728511315618,0.7857,2376.7,2376.4,4.20793]
[1728511315951,0.06706043,2376.6,2376.4,4.20793]
[1728511318660,0.06706043,2376.6,2376.2,8.41649]
[1728511318869,0.06706043,2376.6,2376.4,4.20803]
[1728511320787,0.06706043,2376.6,2376.3,4.20806]
[1728511320981,0.57307847,2376.6,2376.4,4.208]
[1728511321282,0.06706043,2376.6,2376.4,4.208]
[1728511323159,0.06706043,2376.6,2376.5,4.20786]
[1728511323487,0.06706043,2376.6,2376.2,4.20824]
[1728511323646,0.06706043,2376.6,2376.4,8.41592]
[1728511323847,0.06706043,2376.6,2376.4,4.20795]
[1728511329561,0.06706043,2376.6,2376.5,4.20786]
[1728511329768,1.83830681,2376.8,2376.5,4.99036]
[1728511329955,0.0668241,2376.7,2376.5,4.99036]
[1728511330153,2.94066649,2376.8,2376.5,4.99036]
[1728511330372,0.0668241,2376.7,2376.5,4.99036]
[1728511330583,2.94066649,2376.8,2376.5,4.99036]
[1728511330782,0.0668241,2376.6,2376.5,4.99036]
[1728511331090,2.94066649,2376.8,2376.5,4.99036]
[1728511331290,0.0668241,2376.6,2376.5,4.99036]
[1728511331494,2.94066649,2376.8,2376.5,4.99036]
[1728511331733,4.20539,2377.9,2376.9,4.20705]
[1728511331864,0.65897007,2379.3,2377.7,4.20569]
[1728511331865,5.00275,2378.2,2377.7,4.20569]
[1728511332198,0.43732227,2378.1,2377.9,4.20538]
[1728511332701,0.7978,2378.2,2377.8,4.20555]
[1728511334098,0.7656,2378.4,2378.0,4.2051]
[1728511334272,0.7656,2378.4,2377.8,0.8274]
[1728511334273,0.7656,2378.8,2378.3,4.20466]
[1728511334473,0.68076268,2378.7,2378.3,4.20456]
[1728511334788,0.7656,2378.8,2378.5,4.20432]
[1728511335104,0.7656,2378.8,2378.3,5.01306]
[1728511335407,3.97613882,2378.6,2378.1,4.20489]
[1728511335702,3.97613882,2378.2,2377.5,8.41193]
[1728511335862,3.97613882,2378.2,2377.4,0.8085]
[1728511336068,3.97613882,2378.2,2377.7,4.20564]
[1728511336264,0.7856,2378.3,2377.7,4.20564]
[1728511336604,4.20486,2378.2,2377.6,4.20587]
[1728511336768,0.499046,2378.1,2377.6,4.20587]
[1728511337108,0.499046,2378.1,2377.7,4.20572]
[1728511338104,0.499046,2378.1,2377.7,8.41133]
[1728511339181,0.499046,2378.1,2377.7,4.20561]
[1728511339490,0.06304562,2378.0,2377.9,4.20538]
[1728511340090,4.99029,2378.3,2377.9,4.20538]
[1728511340291,0.06304562,2378.0,2377.9,4.20538]
[1728511340611,0.06304562,2378.0,2377.8,4.20553]
[1728511340779,0.919489,2378.2,2377.8,4.20553]
[1728511340969,0.06304562,2378.1,2377.8,4.20553]
[1728511341679,0.06304562,2378.1,2377.7,4.20561]
[1728511341869,1.08081808,2378.1,2377.7,4.20561]
[1728511342070,0.8217,2378.0,2377.5,4.206]
[1728511342381,0.8217,2378.0,2377.1,0.0631035]
[1728511342382,4.20557,2377.8,2377.3,4.20632]
[1728511342579,0.7918,2377.6,2377.1,4.20667]
[1728511342786,0.50614124,2377.5,2377.1,4.20667]
[1728511342981,0.06378243,2377.4,2377.1,4.20667]
[1728511343470,0.06378243,2377.4,2377.1,8.41336]
[1728511343998,0.06378243,2377.4,2377.2,4.20662]
[1728511346483,0.50614124,2377.5,2377.2,4.20662]
[1728511346686,0.0634788,2377.3,2377.2,4.20662]
[1728511346893,0.50614124,2377.5,2377.2,4.20662]
[1728511347298,0.0634788,2377.4,2377.2,4.20662]
[1728511347813,0.0634788,2377.4,2377.3,4.20645]
[1728511348194,0.0634788,2377.4,2377.3,5.597762]
[1728511348528,0.43866281,2377.9,2377.8,4.20556]
[1728511349026,0.49971061,2377.9,2377.8,4.20556]
[1728511350619,0.49971061,2377.9,2377.6,8.41163]
[1728511351024,0.49971061,2377.9,2377.7,4.20574]
[1728511354426,0.49971061,2377.9,2377.8,4.20556]
[1728511354955,0.49971061,2377.9,2377.7,4.20574]
[1728511355810,0.49971061,2377.9,2377.7,4.20563]
[1728511357109,0.49971061,2377.9,2377.7,8.41127]
[1728511357766,0.49971061,2377.9,2377.3,5.047712]
[1728511357767,1.87268167,2377.9,2377.5,4.20599]
[1728511357920,4.2061,2377.5,2377.0,4.20692]
[1728511358124,0.8026,2377.4,2377.1,4.20671]
[1728511358313,0.86388434,2377.4,2377.1,4.20671]
[1728511358952,0.86388434,2377.4,2377.2,4.20659]
[1728511359251,0.06128434,2377.4,2377.3,4.20645]
[1728511359453,0.06128434,2377.4,2377.3,5.21259199]
[1728511359615,13.66866281,2377.9,2377.7,4.20559]
[1728511359954,0.43866281,2377.9,2377.7,4.20559]
[1728511360155,0.8098,2377.6,2376.9,0.7823]
[1728511360452,0.8098,2377.6,2377.3,4.20644]
[1728511360647,1.28732464,2377.5,2377.3,4.20644]
[1728511362259,0.8098,2377.6,2377.3,4.20644]
[1728511363131,1.24848071,2377.6,2377.3,4.20644]
[1728511364662,1.24848071,2377.6,2377.2,4.2065]
[1728511364830,5.45445071,2377.6,2377.2,4.2065]
[1728511365428,18.45461953,2377.6,2377.0,4.20684]
[1728511365643,4.75164507,2377.5,2377.0,4.20684]
[1728511365845,8.95790507,2377.5,2377.0,4.20684]
[1728511366254,4.20627,2377.4,2377.0,4.20684]
[1728511366447,4.75164507,2377.5,2377.0,4.20684]
[1728511366773,2.32062646,2377.4,2377.0,4.20684]
[1728511368466,15.55062646,2377.4,2377.1,4.20678]
[1728511370076,15.55062646,2377.4,2376.8,4.20718]
[1728511370389,15.55062646,2377.4,2377.0,4.20696]
[1728511370670,19.75690646,2377.4,2377.0,4.20696]
[1728511370872,2.45085515,2377.3,2377.0,4.20696]
[1728511374569,0.05886361,2377.2,2377.0,4.20696]
[1728511374770,2.45085515,2377.3,2377.0,4.20696]
[1728511374995,0.05886361,2377.2,2377.0,4.20696]
[1728511375181,0.766,2377.2,2377.0,4.20696]
[1728511375386,0.05882976,2377.1,2377.0,4.20696]
[1728511379162,0.05882976,2377.1,2376.8,4.20718]
[1728511379368,6.09180674,2377.1,2376.6,4.20769]
[1728511379595,4.207,2377.0,2376.5,5.01617]
[1728511379904,0.05880155,2376.9,2376.5,5.01617]
[1728511380089,0.05880155,2376.9,2376.6,4.20761]
[1728511380462,2.38859328,2376.9,2376.5,4.20785]
[1728511380698,2.38859328,2376.9,2376.6,4.20766]
[1728511381335,2.38859328,2376.9,2376.5,4.20785]
[1728511381505,2.38859328,2376.9,2376.6,4.20768]
[1728511382927,2.38859328,2376.9,2376.7,4.20751]
[1728511383631,2.38859328,2376.9,2376.6,4.20767]
[1728511383798,1.98255933,2376.8,2376.3,5.01648]
[1728511384001,1.98255933,2376.8,2376.5,4.20784]
[1728511384235,0.05880155,2376.7,2376.5,4.20784]
[1728511384665,17.437,2377.0,2376.5,4.20784]
[1728511384848,0.05858145,2376.6,2376.5,4.20784]
[1728511385035,17.437,2377.0,2376.5,4.20784]
[1728511385365,0.05858145,2376.6,2376.5,4.20784]
[1728511385682,17.437,2377.0,2376.6,4.20767]
[1728511386227,13.23,2377.0,2376.6,4.20767]
[1728511386780,17.437,2377.0,2376.6,4.20767]
[1728511389564,0.05858145,2376.9,2376.6,4.20767]
[1728511390063,0.05858145,2376.9,2376.8,4.20733]
[1728511390427,0.05858145,2376.9,2376.8,4.96663]
[1728511390940,0.49718476,2376.9,2376.8,4.96663]
[1728511392481,0.05858145,2376.9,2376.8,4.96663]
[1728511392774,0.05858145,2376.9,2376.8,5.51663]
[1728511392974,0.05858145,2376.9,2376.8,10.9469478]
[1728511393343,4.20582,2377.7,2377.2,8.4131]
[1728511393545,17.43582,2377.7,2377.2,8.4131]
[1728511393782,0.0564273,2377.6,2377.3,4.20637]
[1728511395474,0.0564273,2377.6,2377.4,4.20618]
[1728511395677,0.0564273,2377.6,2377.2,0.7558]
[1728511395678,0.0564273,2377.6,2377.2,4.96241]
[1728511395887,6.34337003,2377.6,2377.0,5.03607]
[1728511396044,6.34337003,2377.6,2377.1,4.20679]
[1728511396675,2.13737003,2377.6,2377.2,4.20655]
[1728511399172,6.34329003,2377.6,2377.2,4.20655]
[1728511399794,1.36333234,2377.5,2377.1,4.20679]
[1728511399971,4.98235,2377.4,2376.9,4.20701]
[1728511400297,0.0564273,2377.3,2377.0,4.20698]
[1728511401093,0.0564273,2377.3,2377.1,4.20671]
[1728511401501,4.20612,2377.5,2377.1,4.20671]
[1728511401660,0.0564273,2377.2,2377.1,4.20671]
[1728511402173,13.23,2377.4,2377.1,4.2068]
[1728511402560,0.0564273,2377.3,2377.1,4.2068]
[1728511403588,0.0564273,2377.3,2377.2,4.20662]
[1728511406266,0.0564273,2377.3,2377.1,4.2068]
[1728511406604,0.8439273,2377.3,2377.1,4.2068]
[1728511409184,0.43861364,2377.3,2377.1,4.20671]
[1728511410017,0.43861364,2377.3,2377.0,0.7993]
[1728511410323,0.7772,2377.2,2376.7,4.20736]
[1728511410623,4.20681,2377.1,2376.6,4.20768]
[1728511410780,17.43681,2377.1,2376.6,4.20768]
[1728511411381,21.64377,2377.1,2376.6,4.20768]
[1728511411624,6.84680088,2377.0,2376.5,5.00736]
[1728511411822,2.63971088,2377.0,2376.6,4.20767]
[1728511415224,0.8085,2376.8,2376.2,0.7654]
[1728511415433,3.97613882,2376.6,2376.2,4.97367]
[1728511415752,3.97613882,2376.6,2375.8,5.96260062]
[1728511415753,3.97613882,2376.3,2375.8,4.97442]
[1728511416021,4.20859,2376.1,2375.6,4.20935]
[1728511416231,4.20859,2376.1,2375.6,4.97475]
[1728511416715,4.20859,2376.1,2375.7,4.20928]
[1728511416915,2.64315388,2376.1,2375.7,4.20928]
[1728511419521,0.05642166,2376.0,2375.7,4.20928]
[1728511421393,0.7863,2375.9,2375.7,4.20928]
[1728511421919,0.7863,2375.9,2375.5,4.20959]
[1728511421920,0.05642166,2375.8,2375.5,4.20959]
[1728511422156,0.05642166,2375.8,2375.6,4.20946]
[1728511427468,0.05642166,2375.8,2375.7,4.20928]
[1728511427749,1.24388673,2376.1,2375.9,4.20893]
[1728511428111,1.24388673,2376.1,2375.9,4.20767915]
[1728511428310,1.24388673,2376.1,2375.8,4.2091]
[1728511428549,1.24388673,2376.1,2375.7,4.20928]
[1728511428550,0.7643,2376.0,2375.7,4.20927]
[1728511428752,2.21168867,2376.0,2375.7,4.20927]
[1728511429563,4.97429,2375.3,2374.8,4.21087]
[1728511429770,3.97613882,2375.2,2374.9,4.21069]
[1728511429941,0.7643,2375.3,2375.0,4.21052]
[1728511430766,0.7643,2375.3,2374.6,0.813]
[1728511430767,1.65930888,2375.3,2375.2,4.21017]
[1728511430965,0.7643,2375.3,2375.2,4.21017]
[1728511431263,0.7677,2375.5,2375.2,4.21017]
[1728511431759,0.7677,2375.5,2375.0,4.2104]
[1728511431934,0.7677,2375.5,2375.1,4.21034]
[1728511432137,0.7677,2375.5,2375.0,4.2104]
[1728511432138,4.97742,2375.5,2375.0,4.2105]
[1728511432318,5.2924407,2375.4,2375.0,4.2105]
[1728511432525,0.7677,2375.3,2374.9,4.21062]
[1728511433566,0.7677,2375.3,2374.8,4.21076]
[1728511433567,0.7677,2375.3,2375.0,4.21051]
[1728511434424,0.05478137,2375.2,2374.8,4.21071]
[1728511434643,1.03248221,2375.2,2375.0,4.21052]
[1728511434946,0.05478137,2375.1,2375.0,4.21052]
[1728511435540,0.7677,2375.3,2375.0,4.21052]
[1728511435736,0.05478137,2375.1,2374.9,4.2106]
[1728511435980,3.97613882,2375.0,2374.6,4.21109]
[1728511436276,3.97613882,2374.8,2374.4,4.21145]
[1728511436436,17.20613882,2374.8,2374.2,4.21182]
[1728511436632,4.73103882,2374.6,2374.3,4.21171]
[1728511436987,0.47857126,2374.5,2374.3,4.21171]
[1728511437193,0.53324507,2374.5,2374.3,4.21171]
[1728511437986,0.53324507,2374.5,2374.3,4.21176]
[1728511438143,0.05467381,2374.5,2374.3,4.21176]
[1728511438573,0.05467381,2374.5,2374.3,8.42343]
[1728511438770,0.05467381,2374.5,2374.4,4.21159]
[1728511439280,0.7982,2374.8,2374.5,4.21123]
[1728511439580,0.05377925,2374.7,2374.6,4.21109]
[1728511440277,1.80043388,2374.8,2374.6,4.21109]
[1728511440485,13.23,2374.9,2374.8,4.21088]
[1728511440846,0.7653,2375.0,2374.9,4.2107]
[1728511440994,1.20387932,2375.2,2374.9,4.2107]
[1728511441200,5.18001814,2375.2,2374.7,8.42187]
[1728511441381,3.97613882,2375.0,2374.7,8.4219]
[1728511441556,3.97613882,2375.0,2374.5,4.2113]
[1728511441756,3.97613882,2375.0,2374.6,4.21119]
[1728511442276,0.7734,2374.9,2374.5,4.2113]
[1728511442481,3.97613882,2374.8,2374.5,4.2113]
[1728511442667,0.47495388,2374.7,2374.5,4.2113]
[1728511444192,13.23,2374.8,2374.6,4.21123]
[1728511444692,13.23,2374.8,2374.7,4.21105]
[1728511445654,14.0296,2374.8,2374.6,4.21121]
[1728511445865,14.0296,2374.8,2374.6,4.21115]
[1728511446153,13.23,2374.8,2374.7,4.21105]
[1728511448000,13.23,2374.8,2374.7,5.00675]
[1728511448196,13.23,2374.8,2374.7,5.92854]
[1728511448495,0.7545,2375.2,2375.0,4.21048]
[1728511449256,4.73063882,2375.2,2374.4,5.02925]
[1728511449460,3.97613882,2374.8,2374.4,4.21145]
[1728511449708,4.4568127,2374.8,2374.4,4.21145]
[1728511449867,0.05389821,2374.7,2374.5,4.21141]
[1728511450067,0.48067388,2374.8,2374.5,4.21141]
[1728511450402,0.05381326,2374.7,2374.6,4.21115]
[1728511450712,13.23,2374.9,2374.8,4.21088]
[1728511451003,0.05381892,2374.7,2374.4,4.21157]
[1728511451159,18.76378,2374.9,2374.4,4.21157]
[1728511451365,18.76378,2374.9,2374.5,4.21139]
[1728511451366,0.05381326,2374.6,2374.5,4.21139]
[1728511451567,13.23,2374.9,2374.8,5.03198]
[1728511451865,13.23,2374.9,2374.8,4.21088]
[1728511453059,14.0514,2374.9,2374.7,4.21102]
[1728511453267,14.0514,2374.9,2374.6,4.21115]
[1728511453465,16.27519888,2374.9,2374.8,4.21088]
[1728511453698,14.0514,2374.9,2374.8,4.21088]
[1728511454400,0.8214,2374.9,2374.8,4.21088]
[1728511454864,0.8214,2374.9,2374.6,4.21115]
[1728511454865,0.8214,2374.9,2374.7,4.21104]
[1728511455059,0.8214,2374.9,2374.6,4.21115]
[1728511456372,0.8214,2374.9,2374.6,8.4223]
[1728511456586,3.04519188,2374.9,2374.6,8.4223]
[1728511459670,3.04519188,2374.9,2374.7,4.21104]
[1728511459869,3.04519188,2374.9,2374.4,0.7992]
[1728511459870,13.23,2375.1,2374.8,4.21088]
[1728511460093,14.0204,2375.1,2374.9,4.21061]
[1728511460311,13.23,2375.0,2374.9,4.21061]
[1728511461303,14.63204,2375.0,2374.9,4.21061]
[1728511462211,13.23,2375.0,2374.9,4.21061]
[1728511463908,4.20983,2375.4,2375.3,5.01419]
[1728511463909,13.23,2375.4,2375.3,5.01419]
[1728511464122,13.23,2375.6,2375.5,4.20964]
[1728511464410,13.23,2375.6,2375.2,4.21008]
[1728511464411,14.62821,2375.6,2375.2,4.21008]
[1728511464578,0.824,2375.5,2374.6,0.21211468]
[1728511464784,13.23,2375.5,2375.3,4.20995]
[1728511464990,0.05412474,2375.4,2375.1,4.21023]
[1728511465196,0.05412474,2375.4,2375.2,4.21008]
[1728511465384,1.7801511,2375.4,2375.2,4.21008]
[1728511465593,0.05412474,2375.4,2375.3,4.20999]
[1728511466171,0.05412474,2375.4,2375.3,4.99759]
[1728511466573,0.05412474,2375.4,2375.3,5.08177917]
[1728511467379,13.23,2375.8,2375.7,4.20928]
[1728511467380,13.66858453,2375.8,2375.7,4.20928]
[1728511468434,13.66858453,2375.8,2375.7,5.01258]
[1728511468921,13.23,2375.8,2375.7,5.01258]
[1728511469106,13.23,2376.2,2376.1,4.20857]
[1728511469281,19.83,2376.2,2376.1,4.20857]
[1728511469481,19.83,2376.2,2375.8,4.20901]
[1728511469719,19.83,2376.2,2376.0,4.20873]
[1728511470281,19.83,2376.2,2376.1,4.20857]
[1728511470480,0.786,2376.5,2376.4,4.20804]
[1728511470682,0.786,2376.8,2376.1,0.7886]
[1728511470921,19.83,2376.7,2376.6,4.20769]
[1728511471125,15.62231,2376.5,2376.4,4.20795]
[1728511472423,15.62231,2376.5,2376.3,8.41638]
[1728511472578,15.62231,2376.5,2376.4,4.20804]
[1728511477015,0.7688,2377.0,2376.4,4.20804]
[1728511477016,0.7688,2377.0,2376.5,0.7542]
[1728511477319,0.7688,2377.0,2376.8,4.20718]
[1728511477491,0.7688,2377.0,2376.9,4.20716]
[1728511478198,8.95201882,2377.0,2376.5,4.20775]
[1728511478387,8.95201882,2377.0,2376.6,4.20766]
[1728511478388,0.89520188,2376.9,2376.6,4.20766]
[1728511478589,0.89520188,2376.9,2376.7,4.2075]
[1728511479112,0.89520188,2376.9,2376.5,4.20774]
[1728511479290,0.89520188,2376.9,2376.5,8.41543]
[1728511479489,0.05610505,2376.8,2376.5,8.41543]
[1728511480589,0.05610505,2376.8,2376.5,4.20769]
[1728511480806,0.05610505,2376.8,2376.5,8.41546]
[1728511481104,0.05610505,2376.8,2376.5,4.20769]
[1728511481312,0.96041024,2376.8,2376.3,4.2081]
[1728511481514,3.97613882,2376.6,2376.1,4.20847]
[1728511481713,3.97613882,2376.6,2376.2,4.20836]
[1728511481915,0.05610505,2376.5,2376.2,4.20836]
[1728511482493,0.05610505,2376.5,2376.3,4.20805]
[1728511482694,0.768,2376.7,2376.3,4.20805]
[1728511482931,1.94361791,2376.6,2376.3,4.20805]
[1728511484131,0.05604851,2376.6,2376.3,4.20805]
[1728511484308,0.05604851,2376.6,2376.4,4.20791]
[1728511486436,0.05604851,2376.6,2376.3,4.20805]
[1728511486939,0.05604851,2376.6,2376.4,4.20788]
[1728511487430,0.05604851,2376.6,2376.3,4.20809]
[1728511487637,0.05604851,2376.6,2376.5,4.20786]
[1728511488140,0.7883,2376.9,2376.5,4.20786]
[1728511488313,0.05412189,2376.6,2376.5,4.20786]
[1728511488501,0.7883,2376.9,2376.6,4.20768]
[1728511488699,0.05412189,2376.8,2376.7,4.20751]
[1728511488917,0.05412189,2376.8,2376.6,8.41525]
[1728511489095,9.83752,2377.1,2376.6,8.41525]
[1728511489302,1.85615877,2377.0,2376.9,4.20716]
[1728511489539,0.05412189,2377.0,2376.9,4.20716]
[1728511491232,0.05412189,2377.0,2376.8,4.20724]
[1728511492340,0.05412189,2377.0,2376.8,5.03921]
[1728511492542,0.05412189,2377.0,2376.8,4.20731]
[1728511492727,5.01873,2377.3,2376.8,4.20731]
[1728511493054,0.05412189,2376.9,2376.8,4.20731]
[1728511493217,1.32012388,2377.2,2376.8,4.20731]
[1728511493416,0.05412189,2376.9,2376.8,4.20731]
[1728511493608,1.32012388,2377.2,2376.8,4.20731]
[1728511494145,0.05412189,2377.1,2376.8,4.20731]
[1728511495008,0.05412189,2377.1,2376.9,4.20714]
[1728511495409,0.69341947,2377.1,2376.9,4.20714]
[1728511495921,0.05412189,2377.1,2376.9,4.20714]
[1728511497153,0.8266,2376.9,2376.7,4.20749]
[1728511497347,0.8266,2376.9,2376.7,4.20739]
[1728511497527,0.8072,2377.1,2376.8,4.20733]
[1728511497733,0.8072,2377.1,2376.7,4.20739]
[1728511497734,0.8072,2377.1,2376.9,4.20716]
[1728511498258,0.8072,2377.1,2376.8,4.20732]
[1728511498765,0.8072,2377.1,2376.6,4.20751]
[1728511498941,5.01411,2377.1,2376.6,4.20751]
[1728511499277,8.18313882,2377.0,2376.5,4.20771]
[1728511499451,1.31972488,2376.9,2376.5,4.20771]
[1728511499770,1.31972488,2376.9,2376.5,8.41549]
[1728511499979,1.31972488,2376.9,2376.5,4.20771]
[1728511500334,1.31972488,2376.9,2376.3,5.18548466]
[1728511500335,4.78333882,2376.8,2376.3,4.20812]
[1728511500638,0.8072,2376.8,2376.5,4.20774]
[1728511500912,1.83822237,2376.8,2376.5,4.20774]
[1728511501155,1.83822237,2376.8,2376.6,4.20768]
[1728511501365,1.83822237,2376.8,2376.5,4.20775]
[1728511501675,5.0378,2376.7,2376.2,4.20824]
[1728511501874,3.0,2377.4,2376.0,4.41518353]
[1728511501875,0.8302,2376.5,2376.0,4.41518353]
[1728511502043,0.8302,2376.5,2376.1,4.20855]
[1728511502246,0.8302,2376.5,2376.2,4.20837]
[1728511502444,1.73161088,2376.5,2376.1,4.20855]
[1728511502637,5.93951088,2376.5,2376.0,4.20866]
[1728511503177,4.20825,2376.3,2375.9,4.97841]
[1728511503475,4.20822,2376.3,2375.9,4.20881]
[1728511503684,0.7666,2376.2,2375.9,4.20881]
[1728511503978,0.7666,2376.2,2375.9,4.20891]
[1728511504471,0.7666,2376.2,2375.8,4.2091]
[1728511504681,1.66169588,2376.2,2375.8,4.20898]
[1728511505082,1.66169588,2376.2,2375.8,8.418]
[1728511505254,1.66169588,2376.2,2375.8,4.20898]
[1728511505660,9.8463347,2376.2,2375.6,4.20932]
[1728511506177,4.20866,2376.1,2375.6,4.20932]
[1728511506346,1.40549947,2376.0,2375.6,4.20932]
[1728511506770,0.75,2375.9,2375.6,4.20932]
[1728511507349,0.75,2375.9,2375.6,8.41869]
[1728511508489,0.75,2375.9,2375.6,4.20932]
[1728511508690,4.95894,2375.9,2375.4,8.41942]
[1728511508985,1.50842239,2375.8,2375.5,4.20953]
[1728511509893,4.2093,2375.7,2375.2,0.21113704]
[1728511510049,4.2093,2375.7,2375.1,4.21022]
[1728511510050,8.98719882,2375.6,2375.1,4.21022]
[1728511510245,8.98719882,2375.6,2375.0,4.2104]
[1728511510246,4.77763882,2375.6,2375.0,4.2104]
[1728511510492,5.64303978,2375.5,2375.0,4.2104]
[1728511510694,5.01132,2375.4,2375.0,4.2104]
[1728511510851,0.8015,2375.4,2375.0,4.2104]
[1728511511188,0.0534649,2375.3,2375.1,4.21034]
[1728511511485,0.0534649,2375.3,2375.1,4.21019]
[1728511512283,0.27695388,2375.3,2375.0,4.2104]
[1728511513092,0.27695388,2375.3,2375.0,8.42082]
[1728511513250,0.0534649,2375.3,2375.1,4.21031]
[1728511513454,0.0534649,2375.3,2375.2,4.21017]
[1728511515162,5.60411,2375.6,2375.3,4.20989]
[1728511516659,5.60411,2375.6,2375.1,4.21022]
[1728511516964,5.60411,2375.6,2375.2,4.21005]
[1728511517170,7.59334343,2375.6,2375.2,4.21005]
[1728511519707,6.99050343,2375.6,2375.2,4.21005]
[1728511520368,2.78103343,2375.6,2375.2,4.21005]
[1728511520568,2.78103343,2375.6,2375.1,4.21022]
[1728511520776,6.99051343,2375.6,2375.1,8.42047]
[1728511521711,4.21012,2375.3,2374.8,4.2108]
[1728511522318,0.8082,2375.2,2374.8,4.2108]
[1728511522606,13.20476882,2375.2,2374.7,4.21095]
[1728511523515,8.99451882,2375.2,2374.7,4.21095]
[1728511523810,4.2108,2374.9,2374.3,4.21175]
[1728511523977,0.7529,2374.8,2374.4,4.21156]
[1728511524602,0.05281326,2374.7,2374.4,4.21156]
[1728511524813,0.05281326,2374.7,2374.3,4.21175]
[1728511525111,4.96386,2374.8,2374.3,4.21168]
[1728511525112,4.72903882,2374.8,2374.3,4.21168]
[1728511525284,0.05281326,2374.6,2374.3,4.21168]
[1728511525486,8.18744882,2374.6,2374.1,8.42401]